bitfinex/quotes_ETHUSD_20230103
["timestamp","ask_amount","ask_price","bid_price","bid_amount"]
[1672762108024,7.41839989,1212.9,1212.8,55.16122488]
[1672762109638,7.41839989,1212.9,1212.8,53.53122488]
[1672762110232,7.41839989,1212.9,1212.8,56.78122488]
[1672762110860,7.41839989,1212.9,1212.8,46.88677488]
[1672762111073,7.41839989,1212.9,1212.8,36.99232488]
[1672762111316,7.41839989,1212.9,1212.8,35.36232488]
[1672762112177,7.41839989,1212.9,1212.8,33.74232488]
[1672762112616,7.41839989,1212.9,1212.8,35.37232488]
[1672762112750,7.41839989,1212.9,1212.8,45.26677488]
[1672762113071,7.41839989,1212.9,1212.8,43.63677488]
[1672762113278,3.70875172,1212.9,1212.8,43.63677488]
[1672762113905,3.70875172,1212.9,1212.8,53.53122488]
[1672762114326,3.70875172,1212.9,1212.8,43.63677488]
[1672762115307,3.70875172,1212.9,1212.8,45.25377488]
[1672762115846,3.70875172,1212.9,1212.8,35.35932488]
[1672762116048,7.41839989,1212.9,1212.8,35.35932488]
[1672762116266,7.41839989,1212.9,1212.8,45.25377488]
[1672762116626,7.41839989,1212.9,1212.8,46.88377488]
[1672762116790,7.41839989,1212.9,1212.8,36.98932488]
[1672762117003,7.41839989,1212.9,1212.8,46.88377488]
[1672762119237,3.70875172,1212.9,1212.8,43.63677488]
[1672762119395,3.70875172,1212.9,1212.8,45.26477488]
[1672762120887,3.70875172,1212.9,1212.8,45.26177488]
[1672762121558,3.70875172,1212.9,1212.8,46.87977488]
[1672762123608,3.70875172,1212.9,1212.8,43.63677488]
[1672762123815,3.70875172,1212.9,1212.8,46.88877488]
[1672762124287,3.70875172,1212.9,1212.8,60.27891219]
[1672762124495,3.70875172,1212.9,1212.8,68.98191219]
[1672762125545,3.70875172,1212.9,1212.8,69.80391219]
[1672762126219,3.70875172,1212.9,1212.8,69.75391219]
[1672762128143,3.62105172,1212.9,1212.8,71.79291219]
[1672762128359,0.12270194,1213.0,1212.9,0.08694828]
[1672762128484,0.05670194,1213.0,1212.9,56.04284868]
[1672762128856,0.05670194,1213.0,1212.9,50.93465288]
[1672762129017,0.05670194,1213.0,1212.9,45.3477046]
[1672762129901,0.05670194,1213.0,1212.9,47.3937046]
[1672762130257,0.05670194,1213.0,1212.9,47.8034247]
[1672762130374,0.05670194,1213.0,1212.9,49.8424247]
[1672762132295,0.05670194,1213.0,1212.9,57.9265247]
[1672762132520,0.05670194,1213.0,1212.9,59.9725247]
[1672762133865,0.05670194,1213.0,1212.9,49.2235247]
[1672762134088,0.05670194,1213.0,1212.9,46.2235247]
[1672762134341,0.05670194,1213.0,1212.9,44.1845247]
[1672762137467,0.05670194,1213.0,1212.9,52.8875247]
[1672762137914,0.05670194,1213.0,1212.9,62.7811647]
[1672762138402,0.05670194,1213.0,1212.9,63.27685201]
[1672762138577,0.05670194,1213.0,1212.9,66.27685201]
[1672762138787,0.05670194,1213.0,1212.9,68.32285201]
[1672762139584,0.05670194,1213.0,1212.9,68.55285201]
[1672762139899,1.94e-06,1213.0,1212.9,69.65767868]
[1672762140209,1.94e-06,1213.0,1212.9,70.27657868]
[1672762140568,0.0186335,1213.1,1212.9,90.32257868]
[1672762140778,0.0186335,1213.1,1213.0,26.5030804]
[1672762141053,3.5e-06,1213.1,1213.0,59.82122951]
[1672762141380,0.81294117,1213.2,1213.0,61.42174349]
[1672762141685,0.81294117,1213.2,1213.1,50.9211104]
[1672762141873,0.81294117,1213.2,1213.1,54.2501104]
[1672762142059,0.81294117,1213.2,1213.1,66.62801733]
[1672762142268,0.81294117,1213.2,1213.1,69.778844]
[1672762142526,0.02259319,1213.3,1213.2,12.85186114]
[1672762142670,0.02259319,1213.3,1213.2,56.0310877]
[1672762142881,0.02259319,1213.3,1213.2,57.20493854]
[1672762143196,0.02259319,1213.4,1213.2,61.42643005]
[1672762143406,0.02259319,1213.4,1213.3,21.22023185]
[1672762143619,0.02259319,1213.5,1213.3,56.88507185]
[1672762143829,3.19e-06,1213.5,1213.4,26.2675177]
[1672762144073,3.19e-06,1213.5,1213.4,56.0351977]
[1672762144288,3.19e-06,1213.5,1213.4,59.57588681]
[1672762144478,3.19e-06,1213.5,1213.4,60.07157412]
[1672762144668,3.19e-06,1213.5,1213.4,49.33457412]
[1672762144912,3.19e-06,1213.5,1213.4,48.83888681]
[1672762146291,3.19e-06,1213.5,1213.4,69.96413412]
[1672762146460,3.19e-06,1213.5,1213.4,70.19413412]
[1672762146813,3.19e-06,1213.5,1213.4,77.19413412]
[1672762147359,3.19e-06,1213.5,1213.4,67.77608238]
[1672762147513,3.19e-06,1213.5,1213.4,65.24599602]
[1672762147967,3.19e-06,1213.5,1213.4,65.01599602]
[1672762148730,3.19e-06,1213.5,1213.4,65.51168333]
[1672762148918,3.19e-06,1213.5,1213.4,46.33878845]
[1672762149085,3.19e-06,1213.5,1213.4,33.91654114]
[1672762149306,4.28965975,1213.5,1213.4,14.13742114]
[1672762149646,4.28965975,1213.5,1213.4,4.24786114]
[1672762149859,4.28965975,1213.5,1213.4,4.14886114]
[1672762150451,4.28965975,1213.5,1213.4,14.03842114]
[1672762150664,4.28965975,1213.5,1213.4,14.13742114]
[1672762151150,3.19e-06,1213.5,1213.4,14.13742114]
[1672762151292,3.19e-06,1213.5,1213.4,17.7757195]
[1672762151507,3.19e-06,1213.5,1213.4,21.81021958]
[1672762152068,3.19e-06,1213.5,1213.4,31.69977958]
[1672762152276,3.19e-06,1213.5,1213.4,41.58933958]
[1672762153120,3.19e-06,1213.5,1213.4,49.17502689]
[1672762157789,3.19e-06,1213.5,1213.4,59.06458689]
[1672762158224,3.19e-06,1213.5,1213.4,48.93449606]
[1672762158435,3.19e-06,1213.5,1213.4,45.93449606]
[1672762158593,3.19e-06,1213.5,1213.4,43.88849606]
[1672762160014,3.19e-06,1213.5,1213.4,45.93449606]
[1672762161854,3.19e-06,1213.5,1213.4,55.82405606]
[1672762164157,3.19e-06,1213.5,1213.4,45.93449606]
[1672762164531,3.19e-06,1213.5,1213.4,55.82405606]
[1672762164744,3.19e-06,1213.5,1213.4,45.93449606]
[1672762166891,3.19e-06,1213.5,1213.4,38.00654114]
[1672762167780,3.19e-06,1213.5,1213.4,38.00326047]
[1672762167953,3.19e-06,1213.5,1213.4,47.89282047]
[1672762168382,3.19e-06,1213.5,1213.4,24.02370047]
[1672762168574,3.17360319,1213.5,1213.4,4.24458047]
[1672762168786,29.04531262,1213.5,1213.4,4.14558047]
[1672762169040,53.18628005,1213.5,1213.4,4.14558047]
[1672762169210,53.84546773,1213.5,1213.4,4.14558047]
[1672762169428,49.51455243,1213.5,1213.4,4.14558047]
[1672762169663,53.84546773,1213.5,1213.4,4.14558047]
[1672762170276,55.47146773,1213.5,1213.4,4.14558047]
[1672762170501,55.47146773,1213.5,1213.3,0.099]
[1672762170690,28.99273186,1213.4,1213.3,11.6660393]
[1672762170891,36.00013116,1213.4,1213.3,11.7650393]
[1672762172685,45.88969116,1213.4,1213.3,11.7650393]
[1672762173053,55.77925116,1213.4,1213.3,11.7650393]
[1672762173421,55.77940437,1213.4,1213.3,11.7650393]
[1672762173647,52.08443586,1213.4,1213.3,11.7650393]
[1672762174045,55.77931441,1213.4,1213.3,11.7650393]
[1672762174261,55.78009309,1213.4,1213.3,11.7650393]
[1672762174695,48.77273301,1213.4,1213.3,11.7650393]
[1672762175671,9.31439645,1213.4,1213.3,11.7650393]
[1672762175835,9.31439645,1213.4,1213.3,45.72583586]
[1672762175836,5.6187,1213.4,1213.3,45.72583586]
[1672762176047,5.6187,1213.4,1213.3,28.3182777]
[1672762176253,5.0,1213.4,1213.3,22.79882347]
[1672762176835,8.69569645,1213.4,1213.3,22.79882347]
[1672762177149,8.69569645,1213.4,1213.3,8.5375177]
[1672762177513,8.69569645,1213.4,1213.3,4.24786114]
[1672762177722,8.69569645,1213.4,1213.3,4.14886114]
[1672762177723,28.47481645,1213.4,1213.3,4.14886114]
[1672762178144,24.77912,1213.4,1213.3,4.14886114]
[1672762178360,42.33742403,1213.4,1213.3,4.14886114]
[1672762178832,42.97020166,1213.4,1213.3,4.14886114]
[1672762179019,33.08064166,1213.4,1213.3,4.14886114]
[1672762179443,42.97020166,1213.4,1213.3,4.14886114]
[1672762179844,43.58890166,1213.4,1213.3,4.14886114]
[1672762180723,43.58890166,1213.4,1213.2,0.099]
[1672762180724,51.92170586,1213.4,1213.2,0.099]
[1672762180947,14.20741966,1213.3,1213.2,7.51717816]
[1672762181100,56.36451026,1213.3,1213.2,7.61617816]
[1672762181686,59.36451026,1213.3,1213.2,7.61617816]
[1672762182778,54.2461543,1213.3,1213.2,7.61617816]
[1672762184432,58.55499338,1213.3,1213.2,7.61617816]
[1672762184582,58.57764849,1213.3,1213.2,7.61617816]
[1672762184789,54.26980941,1213.3,1213.2,7.61617816]
[1672762185132,7.616,1213.2,1213.1,0.00458013]
[1672762185320,65.22781694,1213.2,1213.0,0.00410571]
[1672762185535,13.67378836,1213.1,1213.0,0.00410571]
[1672762185738,46.34981836,1213.1,1213.0,0.00410571]
[1672762185966,32.1253623,1213.1,1213.0,0.00410571]
[1672762186389,35.4963623,1213.1,1213.0,0.00410571]
[1672762186624,44.28930486,1213.1,1213.0,0.00410571]
[1672762186828,48.59784716,1213.1,1213.0,0.00410571]
[1672762188363,50.22184716,1213.1,1213.0,0.00410571]
[1672762188600,50.45184716,1213.1,1213.0,0.00410571]
[1672762189440,46.14330486,1213.1,1213.0,0.00410571]
[1672762190264,49.82975537,1213.1,1213.0,0.00410571]
[1672762190956,59.72176537,1213.1,1213.0,0.00410571]
[1672762192546,49.82975537,1213.1,1213.0,0.00410571]
[1672762192909,59.72176537,1213.1,1213.0,0.00410571]
[1672762193578,64.05421143,1213.1,1213.0,0.00410571]
[1672762194012,62.43021143,1213.1,1213.0,0.00410571]
[1672762194171,62.43021143,1213.1,1213.0,5.00410571]
[1672762194382,62.43021143,1213.1,1213.0,5.10310571]
[1672762195073,62.43021143,1213.1,1213.0,0.099]
[1672762195074,64.68130322,1213.1,1213.0,0.099]
[1672762195217,73.94033608,1213.1,1212.7,0.00484878]
[1672762195433,3.68496916,1212.8,1212.7,0.00484878]
[1672762195747,59.36388093,1212.8,1212.7,0.00484878]
[1672762196207,5.5,1212.7,1212.5,0.00546221]
[1672762196443,47.13721995,1212.6,1212.5,0.00546221]
[1672762196602,47.06573854,1212.6,1212.5,0.00546221]
[1672762196826,50.13721995,1212.6,1212.5,0.00546221]
[1672762197032,57.11522289,1212.6,1212.5,0.00546221]
[1672762197228,57.137878,1212.6,1212.5,0.00546221]
[1672762198171,54.06639659,1212.6,1212.5,0.00546221]
[1672762198765,52.43739659,1212.6,1212.5,0.00546221]
[1672762199327,52.43116888,1212.6,1212.5,0.00546221]
[1672762201174,5.61287229,1212.6,1212.5,0.00546221]
[1672762201326,5.0,1212.6,1212.5,4.34983075]
[1672762201537,14.89609,1212.6,1212.5,0.00546221]
[1672762202386,10.5,1212.6,1212.5,0.00546221]
[1672762202650,20.39609,1212.6,1212.5,0.00546221]
[1672762203165,30.29218,1212.6,1212.5,0.00546221]
[1672762203601,5.0,1212.6,1212.5,4.34983075]
[1672762203748,5.0,1212.6,1212.5,0.00546221]
[1672762204209,5.0,1212.6,1212.5,4.34983075]
[1672762204553,5.0,1212.6,1212.5,8.49869189]
[1672762204712,5.0,1212.6,1212.5,8.59769189]
[1672762205978,5.0,1212.6,1212.5,18.49459189]
[1672762206145,5.0,1212.6,1212.5,4.25332335]
[1672762206369,5.0,1212.6,1212.5,4.15432335]
[1672762206571,14.89609,1212.6,1212.5,4.15432335]
[1672762206754,24.79218,1212.6,1212.5,4.15432335]
[1672762207131,5.0,1212.6,1212.5,18.39559189]
[1672762207405,5.0,1212.6,1212.5,4.25332335]
[1672762207631,5.0,1212.6,1212.5,4.15432335]
[1672762207939,14.91874511,1212.6,1212.5,4.15432335]
[1672762208091,5.02265511,1212.6,1212.5,8.49869189]
[1672762208427,5.02265511,1212.6,1212.5,4.25332335]
[1672762208637,5.02265511,1212.6,1212.5,4.15432335]
[1672762208861,5.02265511,1212.6,1212.5,8.49869189]
[1672762209071,5.02265511,1212.6,1212.5,4.25332335]
[1672762209282,5.02265511,1212.6,1212.5,4.15432335]
[1672762210133,5.02265511,1212.6,1212.5,0.00546221]
[1672762210134,29.15724009,1212.6,1212.5,0.00546221]
[1672762210301,51.57879513,1212.6,1212.5,0.00546221]
[1672762210500,58.49937654,1212.6,1212.5,0.00546221]
[1672762211034,60.12837654,1212.6,1212.5,0.00546221]
[1672762211708,58.49937654,1212.6,1212.5,0.00546221]
[1672762212517,58.49778993,1212.6,1212.5,0.00546221]
[1672762213092,57.05689513,1212.6,1212.5,0.00046221]
[1672762213260,57.05689513,1212.6,1212.3,0.00546221]
[1672762213261,5.5,1212.5,1212.3,0.00546221]
[1672762213469,55.40869901,1212.4,1212.3,0.00546221]
[1672762213699,48.51097901,1212.4,1212.3,0.00546221]
[1672762214728,35.54400854,1212.4,1212.3,0.00546221]
[1672762214949,45.44172854,1212.4,1212.3,0.00546221]
[1672762215615,42.44172854,1212.4,1212.3,0.00546221]
[1672762215913,49.84033908,1212.4,1212.3,0.00546221]
[1672762216754,52.90958955,1212.4,1212.3,0.00546221]
[1672762216967,52.93224466,1212.4,1212.3,0.00546221]
[1672762218134,56.42741638,1212.4,1212.3,0.00546221]
[1672762219487,53.35816591,1212.4,1212.3,0.00546221]
[1672762220269,57.04126647,1212.4,1212.3,0.00546221]
[1672762220472,57.04126647,1212.4,1212.3,2.21e-06]
[1672762220719,57.04126647,1212.4,1212.2,0.00728603]
[1672762220924,37.03995854,1212.3,1212.2,0.00728603]
[1672762221093,48.84422805,1212.3,1212.2,0.00728603]
[1672762221310,53.02250033,1212.3,1212.2,0.00728603]
[1672762221574,54.65150033,1212.3,1212.2,6.03e-06]
[1672762221791,55.27070033,1212.3,1212.2,6.03e-06]
[1672762221955,55.27726192,1212.3,1212.2,6.03e-06]
[1672762223435,55.27926192,1212.3,1212.2,6.03e-06]
[1672762223774,55.27726192,1212.3,1212.2,6.03e-06]
[1672762224155,53.64826192,1212.3,1212.2,6.03e-06]
[1672762224725,17.97330597,1212.3,1212.2,6.03e-06]
[1672762224873,5.0,1212.3,1212.2,6.03e-06]
[1672762225395,5.0,1212.3,1212.2,4.34437457]
[1672762226096,14.89853,1212.3,1212.2,4.34437457]
[1672762226468,17.97330597,1212.3,1212.2,4.34437457]
[1672762226678,17.97330597,1212.3,1212.2,6.03e-06]
[1672762226890,14.89853,1212.3,1212.2,6.03e-06]
[1672762227224,14.89853,1212.3,1212.2,4.34437457]
[1672762227444,5.0,1212.3,1212.2,5.97337457]
[1672762227649,5.0,1212.3,1212.2,20.10758571]
[1672762227817,5.0,1212.3,1212.2,10.20823571]
[1672762228024,5.0,1212.3,1212.2,20.10758571]
[1672762228486,5.0,1212.3,1212.2,39.90628571]
[1672762229560,5.0,1212.3,1212.2,30.00693571]
[1672762230500,5.0,1212.3,1212.2,31.63593571]
[1672762230709,5.0,1212.3,1212.2,21.73658571]
[1672762230884,5.0,1212.3,1212.2,31.63593571]
[1672762231343,5.0,1212.3,1212.2,36.34084205]
[1672762231676,5.0,1212.3,1212.2,46.24019205]
[1672762234599,3.14077597,1212.4,1212.2,46.24019205]
[1672762234807,3.07477597,1212.4,1212.3,8.49322968]
[1672762235036,8.07477597,1212.4,1212.3,38.28781968]
[1672762235251,8.07477597,1212.4,1212.3,43.73992789]
[1672762236152,8.07477597,1212.4,1212.3,8.59222968]
[1672762236321,8.07477597,1212.4,1212.3,18.49075968]
[1672762237733,8.07477597,1212.4,1212.3,19.41017465]
[1672762238155,11.7516443,1212.4,1212.3,19.41017465]
[1672762238648,11.7516443,1212.4,1212.3,29.30870465]
[1672762238945,8.07477597,1212.4,1212.3,29.30870465]
[1672762239262,8.07477597,1212.4,1212.3,30.93770465]
[1672762239453,8.07477597,1212.4,1212.3,21.03917465]
[1672762239643,8.07477597,1212.4,1212.3,45.55214035]
[1672762240630,8.07477597,1212.4,1212.3,35.65361035]
[1672762240999,8.07477597,1212.4,1212.3,25.75508035]
[1672762242503,5.0,1212.4,1212.3,25.75508035]
[1672762243899,5.0,1212.4,1212.3,24.12289371]
[1672762244265,12.36527952,1212.4,1212.3,19.40698801]
[1672762244474,12.36527952,1212.4,1212.3,9.50845801]
[1672762245126,12.36527952,1212.4,1212.3,19.40698801]
[1672762245930,12.36527952,1212.4,1212.3,29.30551801]
[1672762245931,8.68966215,1212.4,1212.3,29.30551801]
[1672762246205,8.68966215,1212.4,1212.3,39.20404801]
[1672762246416,12.36611756,1212.4,1212.3,5.16408947]
[1672762246625,43.91197831,1212.4,1212.3,1.01841497]
[1672762246770,34.01425831,1212.4,1212.3,0.91941497]
[1672762246980,44.53117831,1212.4,1212.3,0.91941497]
[1672762247541,44.55038774,1212.4,1212.3,0.91941497]
[1672762247710,45.32144372,1212.4,1212.3,0.91941497]
[1672762247923,45.55144372,1212.4,1212.3,0.91941497]
[1672762249087,45.49274133,1212.4,1212.3,0.91941497]
[1672762249654,45.50616686,1212.4,1212.3,0.91941497]
[1672762249866,45.52882197,1212.4,1212.3,0.91941497]
[1672762252532,40.42600034,1212.4,1212.3,0.91941497]
[1672762255072,46.55419343,1212.4,1212.3,0.91941497]
[1672762255434,41.61289582,1212.4,1212.3,0.91941497]
[1672762255646,35.48470273,1212.4,1212.3,0.91941497]
[1672762255859,41.61289582,1212.4,1212.3,0.91941497]
[1672762256280,40.58695859,1212.4,1212.3,0.91941497]
[1672762256496,45.58695859,1212.4,1212.3,0.91941497]
[1672762258082,55.48467859,1212.4,1212.3,0.91941497]
[1672762258303,45.58695859,1212.4,1212.3,0.91941497]
[1672762258495,55.48467859,1212.4,1212.3,0.91941497]
[1672762258722,45.58695859,1212.4,1212.3,0.91941497]
[1672762264065,45.38242273,1212.4,1212.3,0.91941497]
[1672762264273,46.61289582,1212.4,1212.3,0.91941497]
[1672762264897,56.51061582,1212.4,1212.3,0.91941497]
[1672762265949,46.61289582,1212.4,1212.3,0.91941497]
[1672762266367,45.59084554,1212.4,1212.3,0.91941497]
[1672762271540,45.59084554,1212.4,1212.3,0.9154246]
[1672762273451,45.59106732,1212.4,1212.3,0.9154246]
[1672762273656,58.48878732,1212.4,1212.3,0.9154246]
[1672762273869,64.61698041,1212.4,1212.3,0.9154246]
[1672762275992,54.71926041,1212.4,1212.3,0.9154246]
[1672762276441,64.61698041,1212.4,1212.3,0.9154246]
[1672762276668,54.71926041,1212.4,1212.3,0.9154246]
[1672762277829,48.59106732,1212.4,1212.3,0.9154246]
[1672762278037,54.71926041,1212.4,1212.3,0.9154246]
[1672762278183,64.61698041,1212.4,1212.3,0.9154246]
[1672762278391,61.57755492,1212.4,1212.3,0.9154246]
[1672762278607,67.70574801,1212.4,1212.3,0.9154246]
[1672762278813,63.19655492,1212.4,1212.3,0.29972307]
[1672762283764,61.57755492,1212.4,1212.3,0.29972307]
[1672762287079,63.94326431,1212.4,1212.3,0.29972307]
[1672762289407,68.09212545,1212.4,1212.3,0.29972307]
[1672762290751,68.58729717,1212.4,1212.3,0.29972307]
[1672762291382,64.43843603,1212.4,1212.3,0.29972307]
[1672762293439,63.94326431,1212.4,1212.3,0.29972307]
[1672762295171,64.43843603,1212.4,1212.3,0.29972307]
[1672762295328,64.44043603,1212.4,1212.3,0.29972307]
[1672762295543,64.43843603,1212.4,1212.3,0.29972307]
[1672762295739,59.43843603,1212.4,1212.3,0.29972307]
[1672762296810,64.43843603,1212.4,1212.3,0.29972307]
[1672762297575,68.58729717,1212.4,1212.3,0.29972307]
[1672762297784,5.5,1212.3,1212.2,6.03e-06]
[1672762297952,65.68089228,1212.3,1212.2,6.03e-06]
[1672762298372,65.556864,1212.3,1212.2,6.03e-06]
[1672762298805,66.176064,1212.3,1212.2,6.03e-06]
[1672762299016,2.55699397,1212.1,1212.0,6.67958867]
[1672762299267,46.9333945,1212.1,1212.0,0.099]
[1672762299485,52.2399706,1212.1,1211.9,1.63221316]
[1672762299790,14.21814405,1212.0,1211.9,1.63221316]
[1672762300001,4.31715405,1212.0,1211.9,5.82309503]
[1672762300215,9.31715405,1212.0,1211.9,15.82389503]
[1672762300451,9.31715405,1212.0,1211.9,5.92209503]
[1672762300575,9.31715405,1212.0,1211.9,18.56580822]
[1672762300781,9.31715405,1212.0,1211.9,8.66400822]
[1672762301044,13.65273919,1212.0,1211.9,5.92209503]
[1672762301863,13.65273919,1212.0,1211.9,29.87455617]
[1672762301864,9.31715405,1212.0,1211.9,29.87455617]
[1672762302076,9.31715405,1212.0,1211.9,19.97275617]
[1672762302289,13.65273919,1212.0,1211.9,29.87455617]
[1672762302495,13.65273919,1212.0,1211.9,19.97275617]
[1672762302730,9.31715405,1212.0,1211.9,19.97275617]
[1672762303538,13.65273919,1212.0,1211.9,19.97275617]
[1672762303745,13.65273919,1212.0,1211.9,10.07095617]
[1672762304669,13.65273919,1212.0,1211.9,5.8800743]
[1672762304892,13.65273919,1212.0,1211.9,9.33046245]
[1672762305192,13.65273919,1212.0,1211.9,19.23226245]
[1672762305768,13.65273919,1212.0,1211.9,9.33046245]
[1672762306298,49.64886053,1212.0,1211.9,1.73121316]
[1672762306508,49.64886053,1212.0,1211.9,1.63221316]
[1672762306988,39.74787053,1212.0,1211.9,1.63221316]
[1672762307361,29.84688053,1212.0,1211.9,1.63221316]
[1672762308812,39.74787053,1212.0,1211.9,1.63221316]
[1672762309072,45.33498014,1212.0,1211.9,1.63221316]
[1672762309471,55.46597014,1212.0,1211.9,1.63221316]
[1672762309701,55.46216248,1212.0,1211.9,1.63221316]
[1672762309903,66.38521356,1212.0,1211.9,0.00321316]
[1672762311181,69.38521356,1212.0,1211.9,0.00321316]
[1672762311393,70.00461356,1212.0,1211.9,0.00321316]
[1672762311581,28.58216748,1212.0,1211.9,0.00321316]
[1672762311771,23.56124082,1212.0,1211.9,1.63221316]
[1672762311985,22.85416748,1212.0,1211.9,1.63221316]
[1672762312180,22.85216748,1212.0,1211.9,1.63221316]
[1672762312397,32.75315748,1212.0,1211.9,1.63221316]
[1672762313278,54.66425325,1212.0,1211.9,1.63221316]
[1672762313806,54.89425325,1212.0,1211.9,0.00321316]
[1672762314557,64.79524325,1212.0,1211.9,0.00321316]
[1672762314705,64.69524325,1212.0,1211.9,0.00321316]
[1672762319601,54.79425325,1212.0,1211.9,0.00321316]
[1672762320019,28.85990678,1212.0,1211.9,0.00321316]
[1672762320343,18.95891678,1212.0,1211.9,0.00321316]
[1672762320505,24.07017141,1212.0,1211.9,0.00321316]
[1672762320699,28.85990678,1212.0,1211.9,0.00321316]
[1672762320914,38.76089678,1212.0,1211.9,0.00321316]
[1672762321162,42.64242026,1212.0,1211.9,0.00321316]
[1672762321853,41.00186221,1212.0,1211.9,0.00321316]
[1672762322071,41.00142302,1212.0,1211.9,0.00321316]
[1672762322314,50.90241302,1212.0,1211.9,0.00321316]
[1672762322858,45.7912046,1212.0,1211.9,0.00321316]
[1672762323008,51.92357107,1212.0,1211.9,0.00321316]
[1672762326332,52.54297107,1212.0,1211.9,0.00321316]
[1672762327855,32.74099107,1212.0,1211.9,0.00321316]
[1672762328216,16.31856874,1212.0,1211.9,0.00321316]
[1672762328428,24.14658234,1212.0,1211.9,0.00321316]
[1672762328573,26.220643,1212.0,1211.9,0.00321316]
[1672762329011,32.35300947,1212.0,1211.9,0.00321316]
[1672762330001,26.220643,1212.0,1211.9,0.00321316]
[1672762330209,31.33272709,1212.0,1211.9,0.00321316]
[1672762330527,29.25864642,1212.0,1211.9,4.3387983]
[1672762330842,19.35765642,1212.0,1211.9,4.3387983]
[1672762331058,10.23825642,1212.0,1211.9,4.3387983]
[1672762331201,10.00825642,1212.0,1211.9,4.3387983]
[1672762331408,9.22377594,1212.0,1211.9,5.9657983]
[1672762331622,9.22377594,1212.0,1211.9,15.9665983]
[1672762331886,9.22377594,1212.0,1211.9,6.0647983]
[1672762332280,13.55936108,1212.0,1211.9,6.0647983]
[1672762332492,13.55936108,1212.0,1211.9,1.72921316]
[1672762332493,44.04681156,1212.0,1211.9,1.72921316]
[1672762332704,44.04681156,1212.0,1211.9,1.63021316]
[1672762333887,24.24483156,1212.0,1211.9,1.63021316]
[1672762334251,34.14582156,1212.0,1211.9,1.63021316]
[1672762334567,24.24483156,1212.0,1211.9,1.63021316]
[1672762335154,24.24483156,1212.0,1211.9,4.55146301]
[1672762335681,24.24483156,1212.0,1211.9,1.63021316]
[1672762335893,34.14582156,1212.0,1211.9,4.55687871]
[1672762336781,24.24483156,1212.0,1211.9,1.63021316]
[1672762336991,24.24483156,1212.0,1211.9,5.29017846]
[1672762337198,24.24483156,1212.0,1211.9,5.38917846]
[1672762337684,14.34384156,1212.0,1211.9,5.38917846]
[1672762338045,39.64582156,1212.0,1211.9,5.38917846]
[1672762338256,24.24483156,1212.0,1211.9,5.38917846]
[1672762338677,24.24483156,1212.0,1211.9,1.72921316]
[1672762339048,34.14582156,1212.0,1211.9,1.63021316]
[1672762339408,34.14582156,1212.0,1211.9,1.62699361]
[1672762339829,29.24962922,1212.0,1211.9,1.62699361]
[1672762340038,34.24962922,1212.0,1211.9,1.62699361]
[1672762341007,24.34863922,1212.0,1211.9,4.75510559]
[1672762341459,14.44764922,1212.0,1211.9,4.75510559]
[1672762341676,24.34863922,1212.0,1211.9,4.75510559]
[1672762342036,24.34863922,1212.0,1211.9,1.62699361]
[1672762342311,34.24962922,1212.0,1211.9,1.62699361]
[1672762343461,50.23770519,1212.0,1211.9,1.62699361]
[1672762343654,45.12564111,1212.0,1211.9,1.62699361]
[1672762344145,51.48800758,1212.0,1211.9,1.62699361]
[1672762345558,51.48800758,1212.0,1211.8,1.79166682]
[1672762345794,19.95157376,1211.9,1211.8,1.69266682]
[1672762345943,29.85337376,1211.9,1211.8,1.69266682]
[1672762346347,39.75517376,1211.9,1211.8,1.69266682]
[1672762347557,36.07053538,1211.9,1211.8,1.69266682]
[1672762347739,45.97233538,1211.9,1211.8,1.69266682]
[1672762348441,36.07053538,1211.9,1211.8,1.69266682]
[1672762349570,37.08691323,1211.9,1211.8,1.69266682]
[1672762349795,31.58691323,1211.9,1211.8,1.69266682]
[1672762349949,19.23738514,1211.9,1211.8,1.69266682]
[1672762350159,29.13918514,1211.9,1211.8,1.69266682]
[1672762350646,34.25634953,1211.9,1211.8,1.69266682]
[1672762350823,24.35454953,1211.9,1211.8,1.69266682]
[1672762351168,24.35454953,1211.9,1211.8,4.52310848]
[1672762351317,14.45274953,1211.9,1211.8,4.52310848]
[1672762351531,19.95274953,1211.9,1211.8,4.52310848]
[1672762351746,14.45274953,1211.9,1211.8,4.52310848]
[1672762352008,14.45153376,1211.9,1211.8,16.05472848]
[1672762352152,14.45153376,1211.9,1211.8,6.25110848]
[1672762352362,24.35333376,1211.9,1211.8,6.25110848]
[1672762352576,34.25513376,1211.9,1211.8,6.25110848]
[1672762352910,34.25513376,1211.9,1211.8,3.42066682]
[1672762353103,44.15693376,1211.9,1211.8,3.32166682]
[1672762353318,35.2278039,1211.9,1211.8,3.32166682]
[1672762353878,45.1296039,1211.9,1211.8,0.06366682]
[1672762354041,45.1316039,1211.9,1211.8,0.06366682]
[1672762354258,45.1296039,1211.9,1211.8,0.06366682]
[1672762354742,51.21197037,1211.9,1211.8,0.06366682]
[1672762355117,51.44197037,1211.9,1211.8,0.06366682]
[1672762355832,41.54017037,1211.9,1211.8,0.06366682]
[1672762356047,15.64673584,1211.9,1211.8,0.06366682]
[1672762356399,21.14673584,1211.9,1211.8,0.06366682]
[1672762356580,31.04853584,1211.9,1211.8,0.06366682]
[1672762356793,16.81236647,1211.9,1211.8,0.06366682]
[1672762357435,16.81236647,1211.9,1211.8,4.39925196]
[1672762357649,26.71416647,1211.9,1211.8,0.06366682]
[1672762357894,20.3518,1211.9,1211.8,0.06366682]
[1672762358127,20.3518,1211.9,1211.8,4.39925196]
[1672762358552,10.06754581,1211.9,1211.8,4.39925196]
[1672762359075,10.06754581,1211.9,1211.8,6.02825196]
[1672762359290,10.06754581,1211.9,1211.8,6.12725196]
[1672762359613,10.45,1211.9,1211.8,6.12725196]
[1672762360016,36.38596647,1211.9,1211.8,1.79166682]
[1672762360336,36.38596647,1211.9,1211.8,1.69266682]
[1672762360506,26.48416647,1211.9,1211.8,1.69266682]
[1672762360724,38.30687834,1211.9,1211.8,1.69266682]
[1672762360918,48.20867834,1211.9,1211.8,1.69266682]
[1672762361476,38.30687834,1211.9,1211.8,1.69266682]
[1672762362760,48.20867834,1211.9,1211.8,1.69266682]
[1672762363135,38.30687834,1211.9,1211.8,1.69266682]
[1672762363347,28.40507834,1211.9,1211.8,1.69266682]
[1672762363572,18.50327834,1211.9,1211.8,1.69266682]
[1672762363795,18.50527834,1211.9,1211.8,6.02825196]
[1672762364118,38.30687834,1211.9,1211.8,1.79166682]
[1672762364333,38.30687834,1211.9,1211.8,1.69266682]
[1672762364334,53.86182769,1211.9,1211.8,1.69266682]
[1672762364916,48.20867834,1211.9,1211.8,1.69266682]
[1672762365140,38.30687834,1211.9,1211.8,1.69266682]
[1672762365328,28.40507834,1211.9,1211.8,1.69266682]
[1672762366962,16.93982051,1211.9,1211.8,6.02825196]
[1672762367152,10.11710864,1211.9,1211.8,6.12725196]
[1672762367711,10.11710864,1211.9,1211.8,16.02987196]
[1672762368299,10.11710864,1211.9,1211.8,25.93249196]
[1672762368507,10.11710864,1211.9,1211.8,6.12725196]
[1672762369589,45.32250864,1211.9,1211.8,1.79166682]
[1672762369802,45.32250864,1211.9,1211.8,1.69266682]
[1672762370024,35.42070864,1211.9,1211.8,1.69266682]
[1672762370336,38.62526357,1211.9,1211.8,1.69266682]